Cogmind - Beta 16 @@@ ROGUE MODE // 2025.10.26 @ 13:24:21 Player: JuustuToug Result: Destroyed by S-10 Pest with Light Assault Rifle Performance ------------- Evolutions (0) 0 Regions Visited (1) 200 Robots Destroyed (14) 70 Value Destroyed (270) 270 Prototype IDs (0) 0 Alien Tech Used (0) 0 Bonus (0) 0 TOTAL SCORE: 540 Bonus ------- None Cogmind --------- Core Integrity 0/250 Matter 250/300 Energy 99/100 System Corruption 0% Temperature Cool (0) Movement Core (50) Location -10/Materials Parts ------- > --- POWER (1) -------- (None) > --- PROPULSION (2) --- (None) > --- UTILITY (2) ------ (None) > --- WEAPON (2) ------- (None) > --- INVENTORY (5) ---- Light Ion Engine Heat Sink Structural Scanner Propulsion Shielding Particle Gun Peak State ------------ > --- POWER ------------ Light Ion Engine > --- PROPULSION ------- Light Treads Light Treads > --- UTILITY ---------- Huge Storage Unit Seismic Detector > --- WEAPON ----------- Medium Laser Assault Rifle > --- INVENTORY -------- Light Ion Engine Light Ion Engine Aluminum Leg Aluminum Leg Aluminum Leg Aluminum Leg Aluminum Leg Heat Sink Visual Processing Unit Seismic Detector Propulsion Shielding Medium Laser Small Laser Particle Gun Mini Grenade Launcher Mini Grenade Launcher [Rating: 9] Favorites ----------- Power Light Ion Engine Engine Light Ion Engine Propulsion Light Treads Treads Light Treads Leg Aluminum Leg Utility Seismic Detector Device Seismic Detector Storage Huge Storage Unit Weapon Assault Rifle Energy Gun Medium Laser Ballistic Gun Assault Rifle Launcher Mini Grenade Launcher Build | -11 -10 ------- Run | Yrd Mat Slots Evolved . | . . Power . | . . Propulsion . | . . Utility . | . . Weapon . | . . Parts Attached 12 | 7 5 Power 2 | 1 1 Engine 2 | 1 1 Core . | . . Reactor . | . . Propulsion 4 | 2 2 Treads 3 | 2 1 Leg 1 | . 1 Wheel . | . . Hover . | . . Flight . | . . Utility 3 | 2 1 Device 1 | 1 . Storage 2 | 1 1 Processor . | . . Hackware . | . . Protection . | . . Artifact . | . . Weapon 3 | 2 1 Energy Gun 1 | 1 . Energy Cannon . | . . Ballistic Gun 1 | 1 . Ballistic Cannon . | . . Launcher 1 | . 1 Special Weapon . | . . Impact Weapon . | . . Slashing Weapon . | . . Piercing Weapon . | . . Special Melee Weapon . | . . Unidentified Prototypes . | . . Parts Lost 7 | . 7 Power 1 | . 1 Propulsion 3 | . 3 Utility 1 | . 1 Weapon 2 | . 2 Highest Loss Streak 7 | . 7 To Critical Strikes . | . . Average Backups 13 | 3 15 Power 1 | . 1 Propulsion 4 | 1 4 Utility 3 | . 3 Weapon 4 | . 4 Tool/Special . | . . Unused Backups 17 | . 17 Power 1 | . 1 Propulsion 4 | . 4 Utility 6 | . 6 Weapon 6 | . 6 Tool/Special . | . . Average Slot Usage (%) 97 | . 97 Engine 13 | . 13 Treads 27 | . 27 Device 13 | . 13 Storage 13 | . 13 Energy Gun 13 | . 13 Ballistic Gun 13 | . 13 Peak Build Rating 9 | 7 9 Average Rating 8 | 4 8 On Entrance 3 | . 7 Avg Prop Armor Cover (%) 11 | . 11 Naked Turns 5 | . 5 Heaviest Build 88 | 13 88 Greatest Support 40 | 40 40 Greatest Overweight (x) 4 | . 4 Average Overweight (x) 1 | . 1 Largest Inventory Capacity 25 | 8 25 Average Capacity 21 | 7 22 Most Carried 21 | 6 21 Average Carried 13 | 3 15 Final Capacity 8 | 8 5 Final Carried 5 | 5 5 Class Distribution -------------------- 97% | Mutant Dominant Class ---------------- Mutant | -10/Materials Resources | -11 -10 ----------- Run | Yrd Mat Matter Collected 364 | 285 79 Remotely . | . . Salvage Created 484 | 104 380 Parts 32 | 7 25 Haulers Intercepted 1 | . 1 Recyclers Shooed . | . . Parts Field Recycled . | . . Retrieved Matter . | . . Parts Self-Destructed . | . . Prevented . | . . Parts Restored . | . . Kills | -11 -10 ------- Run | Yrd Mat Combat Hostiles Destroyed 5 | . 5 Guns 4 | . 4 AOE 1 | . 1 Classes Destroyed 7 | 2 5 Builder 1 | . 1 Tunneler 2 | 2 . Hauler 1 | . 1 Recycler 2 | 1 1 Watcher 3 | . 3 Grunt 4 | . 4 Subdweller 1 | . 1 Best Kill Streak 3 | 3 2 Combat Bots Only 2 | . 2 Max Kills in Single Turn 2 | 1 2 Gunslinging . | . . Exploded 1 | . 1 Melee . | . . Uniques/NPCs Destroyed . | . . Combat | -11 -10 -------- Run | Yrd Mat Hostile Shots Fired 79 | . 79 Missed 25 | . 25 Hits 54 | . 54 Projectile 54 | . 54 Critical Strikes 1 | . 1 Damage Taken 1027 | . 1027 Core 257 | . 257 Absorbed by Shields . | . . Core Remaining (%) 100 | 100 . Volleys Fired 31 | 5 26 Largest 2 | 2 2 Hottest 70 | 70 70 Shots Fired 59 | 10 49 Gun 56 | 10 46 Cannon . | . . Launcher 3 | . 3 Special . | . . Kinetic 28 | 5 23 Thermal 28 | 5 23 Explosive 3 | . 3 Electromagnetic . | . . Robot Hit Streak 15 | 4 15 Robot Miss Streak 3 | 3 3 Penetration Max . | . . Secondary Targets . | . . Shots Hit Robots 39 | 6 33 Core Hits 24 | 4 20 Critical Kills . | . . Critical Parts Destroyed . | . . Critical Strikes 3 | . 3 Burn 3 | . 3 Melee Attacks . | . . Impact . | . . Slashing . | . . Piercing . | . . Sneak Attacks . | . . Combat Hostiles . | . . Follow-up Attacks . | . . Damage Inflicted 911 | 72 839 Guns 487 | 72 415 Cannons . | . . Explosions 419 | . 419 Melee . | . . Ramming 5 | . 5 Kinetic 215 | 22 193 Thermal 272 | 50 222 Explosive 419 | . 419 Electromagnetic . | . . Impact . | . . Slashing . | . . Piercing . | . . Highest Corruption . | . . Average Corruption . | . . Corruption Purged . | . . Corruption Blocked . | . . Overload Shots . | . . Overflow Damage 8 | . 8 Projectiles . | . . Explosions 8 | . 8 Melee . | . . Knockbacks . | . . Impact . | . . Kinetic . | . . Secondary . | . . Self-Inflicted Damage 137 | . 137 Shots 3 | . 3 Rammed 1 | . 1 Targets Rammed 1 | . 1 Kicked . | . . Crushed . | . . Highest Temperature 120 | 27 120 Average Temperature 32 | 11 36 Received Heat Transfer 213 | . 213 Siege Activations . | . . Martial Activations . | . . Shielding Activations . | . . Robots Disrupted . | . . Combat Hostiles . | . . Robots Corrupted . | . . Combat Hostiles . | . . Parts Fried . | . . Impact Corruptions . | . . Robots Melted . | . . Combat Hostiles . | . . Parts Melted 2 | . 2 Heat Transferred 1036 | 148 888 Parts Sabotaged . | . . Parts Stolen . | . . Parts Stripped . | . . Power Chain Reactions . | . . Alert | -11 -10 ------- Run | Yrd Mat Maximum Alert Level . | . . Low Security (%) 100 | 100 100 Level 1 . | . . Level 2 . | . . Level 3 . | . . Level 4 . | . . Level 5 . | . . High Security . | . . Max Security . | . . Peak Influence 44 | 10 44 Initial 3 | . 3 Average 6 | 1 6 Influence Increases 175 | 15 160 Destroy 0b10 Robot/C 80 | . 80 Destroy 0b10 Robot/NC 45 | 15 30 Destroy Leader 28 | . 28 Successful Hack 13 | . 13 Destroy Structure 9 | . 9 Influence Decreases 171 | 10 161 Entered New Map 2 | . 2 Time Decay 143 | 10 133 Lost Part 26 | . 26 Squads Dispatched 1 | . 1 Investigation 1 | . 1 Extermination . | . . Reinforcement . | . . Assault . | . . Garrison . | . . Intercept . | . . Searches Triggered . | . . Construction Impeded . | . . Haulers Reinforced . | . . Active Scanning Responses . | . . Cargo Convoy Interrupts . | . . Stealth | -11 -10 --------- Run | Yrd Mat Distress Signals . | . . Communications Jammed . | . . Distress Signals . | . . Times Spotted 14 | . 14 Peak Tracking Total 4 | . 4 Tactical Retreats . | . . Traps | -11 -10 ------- Run | Yrd Mat Traps Triggered 1 | . 1 Indirectly . | . . Trap Hack Attempts . | . . Triggered . | . . Disarmed . | . . Reprogrammed . | . . Reused . | . . Traps Extracted . | . . Installed . | . . Triggered . | . . Machines | -11 -10 ---------- Run | Yrd Mat Machines Disabled . | . . Max in Single Turn . | . . Machines Repaired . | . . Machines Dismantled . | . . Machines Sabotaged . | . . Overloaded Fab Kills . | . . Hacking | -11 -10 --------- Run | Yrd Mat Machines Accessed 4 | . 4 Terminals 2 | . 2 Fabricators . | . . Repair Stations . | . . Recycling Units 2 | . 2 Scanalyzers . | . . Garrison Access . | . . Total Hacks 11 | . 11 Successful 5 | . 5 Failed 6 | . 6 Catastrophic . | . . Database Lockouts . | . . Manual 12 | . 12 Terminals 5 | . 5 Fabricators . | . . Repair Stations . | . . Recycling Units 6 | . 6 Scanalyzers . | . . Garrison Access . | . . Terminal Hacks . | . . Fabricator Hacks . | . . Repair Station Hacks . | . . Recycling Unit Hacks . | . . Scanalyzer . | . . Garrison Access Hacks . | . . Unauthorized Hacks 5 | . 5 Terminals 2 | . 2 Skim 2 | . 2 Fabricators . | . . Repair Stations . | . . Recycling Units 3 | . 3 Reject 2 | . 2 Mask 1 | . 1 Scanalyzers . | . . Garrison Access . | . . Data Cores Recovered . | . . Used . | . . Hacking Detections 4 | . 4 Full Trace Events . | . . Feedback Events . | . . Feedback Blocked . | . . Robot Schematics Acquired . | . . Robots Built . | . . Authchips . | . . Time . | . . Total Robot Build Rating . | . . Part Schematics Acquired . | . . Parts Built . | . . Authchips . | . . Time . | . . Total Part Build Rating . | . . Part Studies Acquired . | . . Parts Repaired . | . . Time . | . . Parts Recycled . | . . Recycled Matter . | . . Retrieved Matter . | . . Retrieved Components . | . . Parts Scanalyzed . | . . Part Schematics Acquired . | . . Parts Damaged . | . . Bothacking | -11 -10 ------------ Run | Yrd Mat Used RIF Installer . | . . Robots Hacked . | . . Non-combat . | . . Combat . | . . Robot Hacks Applied . | . . Relay Couplers Released . | . . Fabnet Peak Effective % . | . . Robots Rewired . | . . Allies Hacked . | . . Hacks Repelled . | . . Allies | -11 -10 -------- Run | Yrd Mat Total Allies . | . . Largest Group . | . . Highest-Rated Group . | . . Highest-Rated Ally . | . . Total Orders . | . . Ally Attacks . | . . Total Damage . | . . Kills . | . . Allies Corrupted . | . . Allies Melted . | . . Intel | -11 -10 ------- Run | Yrd Mat Active Infowar (turns) 977 | 31 946 Seismic 977 | 31 946 Robot Analysis Total . | . . Derelict Logs Recovered . | . . Drone Launches . | . . Drone Recoveries . | . . Exploration | -11 -10 ------------- Run | Yrd Mat Turns Passed 1052 | 97 955 Spaces Moved 334 | 50 284 Core 29 | 19 10 Treads 305 | 31 274 Legs . | . . Wheels . | . . Hover . | . . Flight . | . . Fastest Speed 50 | 50 50 Average Speed 258 | 118 283 Slowest Speed 480 | 160 480 Overloaded Moves . | . . Propulsion Burnouts . | . . Robots Hopped . | . . Potential Cave-ins . | . . Cave-ins Triggered . | . . Exploration Rate (%) 21 | 4 39 Regions Visited 1 Branch Regions . Pre-discovered Areas . | . . Known Exits Taken . | . . Unknown Exits Taken 1 | 1 . Scrap Searched . | . . Spaces Dug . | . . Terrain Destroyed 11 | . 11 Melee . | . . Projectile . | . . AOE 11 | . 11 Terrain Rammed . | . . Walls Destroyed . | . . Machines Disabled . | . . Actions | -11 -10 --------- Run | Yrd Mat Total 461 | 78 383 Wait 53 | 5 48 Move 333 | 49 284 Hop . | . . Pick Up 29 | 12 17 Fast Attach . | . . Attach 11 | 7 4 Detach . | . . Swap 1 | . 1 Drop 2 | . 2 Fire 31 | 5 26 Melee . | . . Ram . | . . Kick . | . . Crush 1 | . 1 Escape Stasis . | . . Rewire . | . . Trap . | . . Miscellaneous . | . . Route ------- -11/Scrapyard -10/Materials (discovered 2 exits: [*Min] / [*Sub]) History --------- Turn | Location | Event 7 | -11/Scrapyard | Discovered new exit (range 16) 98 | -11/Scrapyard | Entered Materials 312 | -10/Materials | Build established: Mutant 719 | -10/Materials | Discovered new exit (range 9) 976 | -10/Materials | Discovered new exit (range 7) 998 | -10/Materials | Derelicts attacked the area 1013 | -10/Materials | Core integrity fell below 50% 1047 | -10/Materials | Core integrity fell below 20% 1048 | -10/Materials | Released all parts (4) 1053 | -10/Materials | Destroyed by S-10 Pest with Light Assault Rifle Last Messages --------------- 00951_ Acquired 27 matter. 00976_ EXIT=FOUND 00998_ ALERT: Derelict incursion detected, rerouting patrols to target area. 01000_ Med. Laser destroyed. 01001_ T-07 Excavator destroyed. 01005_ Assault Rifle destroyed. 01008_ Lgt. Treads destroyed. 01014_ Lgt. Ion Engine destroyed. 01041_ Integration Channel disabled. 01043_ Aluminum Leg destroyed. 01044_ EP-ZGL(R) destroyed. 01044_ Seismic Detector destroyed. 01044_ Destroyed Seismic Detector. 01048_ Released Huge Storage Unit. 01048_ Released Lgt. Ion Engine. 01048_ Released Lgt. Treads. 01048_ Released Mni. Grenade Launcher. 01053_ The unstable cave ceiling collapses. 01053_ Sub. Monowheel crushed. Map ----- +----------------------------------------------------+ | ????????????????????????????????????????????????? | | ????????????????????????????????????????????????? | | ????????????????????????????????????????????????? | | ????????????????????????????????????????????????? | | ????????????????????????????????????????????????? | | ????????????????????????????????????????????????? | | ????????????????????????????????????????????????? | | ????????????????????????????????????????????????? | | ???????????????????????????????#????????????????? | | ?????????????????????????????? #????????????????? | | ????????######################/#????????????????? | | ????????# ##= #????????????????? | | ????????# "Y" ## " " s #????????????????? | | ????????# """ ## "" ]= #????????????????? | | ????????# ## =![= #????????????????? | | ????????####+###### ]=![* #????????????????? | | ????????# #????#####[=!# ########?####??????? | | ????????# ############ [%* ^ ## #??????? | | ????##### #?# ## R ^^ ## """ #??????? | | ????#] #?# T ## ## """"" #??????? | | ????#] #?# ##### ## ## """"" #??????? | | ????#!! ### """ # ## ## """"" #??????? | | ????#!! # """"" # =%# % # """ #??????? | | ????#!! + """"" # # %#! #??????? | | ????#!! # """"" # # %+%! !#??????? | | ?######## # """ # @ # #* #??????? | | ?# ## # ! #####<## #![! #??????? | | ?# ##+############## ## [ #??????? | | ?# ! #???# # ##########??????? | | ?# #???# """ # #???|"!""#??????? | | ?# ! ####### #???# """ # #??"|"!" #??????? | | ?### #########/###?# """ # ## ##+????? | | ???# #?# #?# # ?? | | ???# ### #?# """ + < ?? | | ???#]/%# = #?# """ # ?? | | ???# %/+% #?# """%###+## ##+##??? | | ???# # """ """ #?# % #? #########??????? | | ???# # """ """ #?######+###? #??????????????? | | ???# # """ """ #??????# #??? #??????????????? | | ???# #% #??????# #??? #??????????????? | | ???# ###+############## #### #??????????????? | | ???# + #??????????????? | | ???# ## #??????????????? | | ???# ######??????????????? | | ???# ######################???????????????????? | | ???# #????????????????????????????????????????? | | ???# #????????????????????????????????????????? | | ???# #????????????????????????????????????????? | | ???# #????????????????????????????????????????? | | ?### #????????????????????????????????????????? | +----------------------------------------------------+ Best States ------------- Heat Dissipation 25 Energy Generation 10 Energy Capacity 125 Matter Stores 300 Matter Capacity 300 Sight Range 16 Terrain Scan Density 10 Evasion (%) 50 Recoil Reduction 2 Item Schematics ----------------- None Robot Schematics ------------------ None Fabricated ------------ Nothing Repaired ---------- Nothing Studied --------- None Alien Tech Used ----------------- None Achievements -------------- None Challenges ------------ None Game ------ Seed CoilOvertunedTube Manual? 0 Play Time 00:07:39 Cumulative 164.4 hours Start 2025.10.26 @ 13:11:11 End 2025.10.26 @ 13:24:21 Sessions 1 Manual Loads 0 Difficulty Rogue Special Mode None Game No. 112 Rogue 112 Adventurer 0 Explorer 0 Win Type - Total 6 Types 4/0/1/1/0/0/0/0/0/0 Lore% 79 Gallery% 72 Achievement% 52 Wizard Run 0 Options --------- Layout 1 ASCII 0 Keyboard 0 Movement Mouse Keybinds 0 Fullscreen 2 Font 24/Smallcaps Map View 50x35 Zoom Use 0% Tactical HUD 1 Map Filters NONE Filters NONE Steam 1 RUN: 67271c7f-b078-4f1b-a57f-ea6e501d6a0b